[Event "European Women Rapid-ch 2023"]
[Site "Monaco"]
[Date "2024.01.14"]
[Round "7.14"]
[White "Sliwicka, Alicja"]
[Black "Guichard, Pauline"]
[Result "1-0"]
[ECO "C60"]
[WhiteElo "2311"]
[BlackElo "2385"]
[Annotator "RC"]
[PlyCount "57"]
[EventDate "2023.12.19"]
[EventType "swiss"]
[EventCountry "MNC"]
[SourceTitle "playchess.com"]
[Source "ChessBase"]
[SourceQuality "1"]
[TimeControl "900+10"]

1. e4 {[%emt 0:00:02]} e5 {[%emt 0:00:01]} 2. Nf3 {[%emt 0:00:01]} Nc6 {[%emt 0:00:02]} 3. Bb5 {[%emt 0:00:02]} Nge7 {[%emt 0:00:03]} 4. Nc3 {[%emt 0:00:11]} g6 {[%emt 0:00:05]} 5. d4 {[%emt 0:00:11]} exd4 {[%emt 0:00:13]} 6. Nd5 {[%emt 0:00:14]} Nxd5 {[%emt 0:02:14]} 7. exd5 {[%emt 0:00:02]} Qe7+ {[%emt 0:00:13]} 8. Kf1 {[%emt 0:00:19]} Ne5 {[%emt 0:00:09]} 9. Qxd4 {[%emt 0:01:44]} Bg7 {[%emt 0:01:11]} 10. Bf4 {[%emt 0:00:10]} f6 {[%emt 0:00:01]} 11. Re1 {[%emt 0:00:24]} O-O {[%emt 0:00:04]} 12. Nxe5 {[%emt 0:02:41]} fxe5 {[%emt 0:00:02]} 13. Bxe5 {[%emt 0:00:02]} Re8 {[%emt 0:06:09]} 14. f4 {[%emt 0:07:42]} d6 {[%emt 0:02:44]} 15. Bxe8 {[%emt 0:00:02]} dxe5 {[%emt 0:00:02]} 16. Bb5 {[%emt 0:00:11]} Bf5 {[%emt 0:00:07]} 17. fxe5 {[%emt 0:00:24]} Rf8 {[%emt 0:00:23]} 18. Kg1 {[%emt 0:00:03]} Kh8 {[%emt 0:01:03]} 19. c3 {[%emt 0:01:03]} Qg5 {[%emt 0:01:22]} 20. h3 {[%emt 0:00:12]} Bc2 {[%emt 0:00:37]} 21. Qe3 {[%emt 0:00:45]} Qh4 {[%emt 0:00:34]} 22. e6 {[%emt 0:00:06]} Qe7 {[%emt 0:00:49]} 23. Kh2 {[%emt 0:00:35]} Rf5 {[%emt 0:00:39]} 24. Rhf1 {[%emt 0:00:53]} Rxd5 {[%emt 0:00:53]} 25. Rf7 {[%emt 0:00:49]} Qd6+ {[%emt 0:00:00]} 26. Qg3 {[%emt 0:00:24]} Be5 {[%emt 0:00:00]} 27. Rxe5 {[%emt 0:00:02]} Rxe5 {[%emt 0:00:00]} 28. e7 {[%emt 0:00:04]} a6 {[%emt 0:00:00]} 29. e8=Q+ {[%emt 0:00:11]} 1-0

[Event "European Women Rapid-ch 2023"]
[Site "Monaco"]
[Date "2024.01.14"]
[Round "7.15"]
[White "Savina, Anastasia"]
[Black "Krasteva, Beloslava"]
[Result "1-0"]
[ECO "E49"]
[WhiteElo "2340"]
[BlackElo "2251"]
[Annotator "RC"]
[PlyCount "105"]
[EventDate "2023.12.19"]
[EventType "swiss"]
[EventCountry "MNC"]
[SourceTitle "playchess.com"]
[Source "ChessBase"]
[SourceQuality "1"]
[TimeControl "900+10"]

1. d4 {[%emt 0:00:03]} Nf6 {[%emt 0:00:02]} 2. c4 {[%emt 0:00:02]} e6 {[%emt 0:00:02]} 3. Nc3 {[%emt 0:00:02]} Bb4 {[%emt 0:00:03]} 4. e3 {[%emt 0:00:01]} O-O {[%emt 0:00:07]} 5. Bd3 {[%emt 0:00:04]} d5 {[%emt 0:00:04]} 6. a3 {[%emt 0:00:05]} Bxc3+ {[%emt 0:00:27]} 7. bxc3 {[%emt 0:00:03]} dxc4 {[%emt 0:00:04]} 8. Bxc4 {[%emt 0:00:02]} c5 {[%emt 0:00:02]} 9. Ne2 {[%emt 0:00:16]} Qc7 {[%emt 0:00:06]} 10. Bd3 {[%emt 0:00:04]} Rd8 {[%emt 0:01:14]} 11. f4 {[%emt 0:02:16]} b6 {[%emt 0:01:48]} 12. O-O {[%emt 0:00:03]} Bb7 {[%emt 0:00:16]} 13. Ng3 {[%emt 0:00:14]} Nc6 {[%emt 0:01:36]} 14. Qe2 {[%emt 0:01:05]} Rac8 {[%emt 0:02:35]} 15. Bb2 {[%emt 0:00:10]} Na5 {[%emt 0:01:14]} 16. Rad1 {[%emt 0:00:03]} cxd4 {[%emt 0:02:23]} 17. cxd4 {[%emt 0:00:04]} Nc4 {[%emt 0:00:10]} 18. Rc1 {[%emt 0:00:02]} b5 {[%emt 0:00:12]} 19. f5 {[%emt 0:00:04]} Qd6 {[%emt 0:03:52]} 20. fxe6 {[%emt 0:03:55]} fxe6 {[%emt 0:00:01]} 21. Nh5 {[%emt 0:02:30]} Nxb2 {[%emt 0:00:55]} 22. Nxf6+ {[%emt 0:00:12]} gxf6 {[%emt 0:00:01]} 23. Rxc8 {[%emt 0:01:00]} Rxc8 {[%emt 0:00:05]} 24. Qxb2 {[%emt 0:00:15]} Qd5 {[%emt 0:00:39]} 25. e4 {[%emt 0:00:18]} Qg5 {[%emt 0:00:20]} 26. Rf3 {[%emt 0:01:24]} Qc1+ {[%emt 0:00:10]} 27. Qxc1 {[%emt 0:00:01]} Rxc1+ {[%emt 0:00:01]} 28. Kf2 {[%emt 0:00:07]} Kf7 {[%emt 0:00:48]} 29. Rh3 {[%emt 0:00:05]} Kg7 {[%emt 0:00:03]} 30. d5 {[%emt 0:00:42]} exd5 {[%emt 0:00:08]} 31. exd5 {[%emt 0:00:02]} Bxd5 {[%emt 0:00:06]} 32. Rxh7+ {[%emt 0:00:02]} Kf8 {[%emt 0:00:03]} 33. Rxa7 {[%emt 0:00:27]} Rc3 {[%emt 0:00:18]} 34. Bf1 {[%emt 0:02:39]} Rc2+ {[%emt 0:00:09]} 35. Kg3 {[%emt 0:00:01]} Ra2 {[%emt 0:00:13]} 36. Ra5 {[%emt 0:00:39]} Be4 {[%emt 0:00:29]} 37. h4 {[%emt 0:00:16]} Kg7 {[%emt 0:00:10]} 38. Bxb5 {[%emt 0:00:39]} Rxg2+ {[%emt 0:00:12]} 39. Kf4 {[%emt 0:00:01]} f5 {[%emt 0:00:12]} 40. Ra7+ {[%emt 0:00:18]} Kf6 {[%emt 0:00:07]} 41. Ra6+ {[%emt 0:00:01]} Kg7 {[%emt 0:00:12]} 42. h5 {[%emt 0:00:13]} Rh2 {[%emt 0:00:14]} 43. Be8 {[%emt 0:00:08]} Rf2+ {[%emt 0:00:09]} 44. Ke5 {[%emt 0:00:05]} Bd3 {[%emt 0:00:10]} 45. Rd6 {[%emt 0:00:21]} Re2+ {[%emt 0:00:05]} 46. Kf4 {[%emt 0:00:09]} Bc4 {[%emt 0:00:18]} 47. h6+ {[%emt 0:00:38]} Kh8 {[%emt 0:00:08]} 48. Bg6 {[%emt 0:00:09]} Rf2+ {[%emt 0:00:12]} 49. Kg5 {[%emt 0:00:05]} Rg2+ {[%emt 0:00:08]} 50. Kf6 {[%emt 0:00:03]} f4 {[%emt 0:00:14]} 51. Rd8+ {[%emt 0:00:16]} Bg8 {[%emt 0:00:01]} 52. h7 {[%emt 0:00:06]} Rxg6+ {[%emt 0:00:18]} 53. Kxg6 {[%emt 0:00:02]} 1-0

[Event "European Women Rapid-ch 2023"]
[Site "Monaco"]
[Date "2024.01.14"]
[Round "7.16"]
[White "Piddubna, Bozhena"]
[Black "Hrebenshchykova, Yelyzaveta"]
[Result "1-0"]
[ECO "D77"]
[WhiteElo "2035"]
[BlackElo "2275"]
[Annotator "RC"]
[PlyCount "95"]
[EventDate "2023.12.19"]
[EventType "swiss"]
[EventCountry "MNC"]
[SourceTitle "playchess.com"]
[Source "ChessBase"]
[SourceQuality "1"]
[TimeControl "900+10"]

1. d4 {[%emt 0:00:01]} Nf6 {[%emt 0:00:01]} 2. Nf3 {[%emt 0:00:01]} g6 {[%emt 0:00:52]} 3. c4 {[%emt 0:00:02]} Bg7 {[%emt 0:00:02]} 4. g3 {[%emt 0:00:01]} O-O {[%emt 0:00:08]} 5. Bg2 {[%emt 0:00:02]} d5 {[%emt 0:00:55]} 6. O-O {[%emt 0:00:03]} dxc4 {[%emt 0:01:05]} 7. Na3 {[%emt 0:00:08]} c5 {[%emt 0:00:06]} 8. Nxc4 {[%emt 0:01:00]} Be6 {[%emt 0:00:42]} 9. b3 {[%emt 0:00:37]} cxd4 {[%emt 0:02:54]} 10. Nxd4 {[%emt 0:00:09]} Bd5 {[%emt 0:00:01]} 11. Bb2 {[%emt 0:00:37]} Bxg2 {[%emt 0:02:29]} 12. Kxg2 {[%emt 0:00:02]} Qd5+ {[%emt 0:00:01]} 13. Nf3 {[%emt 0:00:47]} Nc6 {[%emt 0:01:46]} 14. Qc2 {[%emt 0:00:01]} Rac8 {[%emt 0:00:09]} 15. Rfd1 {[%emt 0:00:07]} Qh5 {[%emt 0:00:07]} 16. a4 {[%emt 0:02:09]} e5 {[%emt 0:01:26]} 17. Rd6 {[%emt 0:00:38]} e4 {[%emt 0:00:18]} 18. Bxf6 {[%emt 0:00:34]} exf3+ {[%emt 0:00:04]} 19. exf3 {[%emt 0:00:21]} Bxf6 {[%emt 0:01:08]} 20. Rxf6 {[%emt 0:00:02]} Ne5 {[%emt 0:00:02]} 21. Qe4 {[%emt 0:00:24]} Nxc4 {[%emt 0:00:41]} 22. bxc4 {[%emt 0:00:02]} b6 {[%emt 0:00:01]} 23. Rd1 {[%emt 0:00:12]} Qc5 {[%emt 0:00:09]} 24. Rd7 {[%emt 0:01:04]} Rc7 {[%emt 0:01:10]} 25. Rxc7 {[%emt 0:05:44]} Qxc7 {[%emt 0:00:01]} 26. h4 {[%emt 0:00:01]} Rc8 {[%emt 0:00:52]} 27. Rf4 {[%emt 0:00:02]} Rd8 {[%emt 0:01:12]} 28. h5 {[%emt 0:00:27]} Qd7 {[%emt 0:00:28]} 29. h6 {[%emt 0:02:22]} f5 {[%emt 0:00:06]} 30. Qe5 {[%emt 0:00:32]} Re8 {[%emt 0:00:04]} 31. Qc3 {[%emt 0:00:23]} Qf7 {[%emt 0:00:48]} 32. c5 {[%emt 0:00:27]} bxc5 {[%emt 0:00:16]} 33. Qxc5 {[%emt 0:00:02]} Qf8 {[%emt 0:00:04]} 34. Qxa7 {[%emt 0:00:39]} Qxh6 {[%emt 0:00:20]} 35. Rc4 {[%emt 0:00:19]} Qg7 {[%emt 0:00:18]} 36. Rc7 {[%emt 0:00:08]} Qf6 {[%emt 0:00:09]} 37. Rxh7 {[%emt 0:00:28]} f4 {[%emt 0:00:01]} 38. g4 {[%emt 0:00:11]} Rd8 {[%emt 0:00:15]} 39. Rd7 {[%emt 0:00:22]} Re8 {[%emt 0:00:11]} 40. Qa5 {[%emt 0:00:18]} Qe6 {[%emt 0:00:27]} 41. Rb7 {[%emt 0:00:14]} Qc6 {[%emt 0:00:00]} 42. Rb6 {[%emt 0:00:08]} Qc2 {[%emt 0:00:01]} 43. Qd5+ {[%emt 0:00:02]} Kh8 {[%emt 0:00:04]} 44. Qd4+ {[%emt 0:00:04]} Kg8 {[%emt 0:00:03]} 45. Qd5+ {[%emt 0:00:09]} Kh8 {[%emt 0:00:03]} 46. Rc6 {[%emt 0:00:01]} Qb1 {[%emt 0:00:32]} 47. Qd4+ {[%emt 0:00:05]} Kg8 {[%emt 0:00:02]} 48. Rc7 {[%emt 0:00:04]} 1-0

[Event "European Women Rapid-ch 2023"]
[Site "Monaco"]
[Date "2024.01.14"]
[Round "7.17"]
[White "Bensdorp-De Labaca, Marlies"]
[Black "De Seroux, Camille"]
[Result "1-0"]
[ECO "E11"]
[WhiteElo "2237"]
[BlackElo "2075"]
[Annotator "RC"]
[PlyCount "117"]
[EventDate "2023.12.19"]
[EventType "swiss"]
[EventCountry "MNC"]
[SourceTitle "playchess.com"]
[Source "ChessBase"]
[SourceQuality "1"]
[TimeControl "900+10"]

1. d4 {[%emt 0:00:02]} Nf6 {[%emt 0:00:01]} 2. c4 {[%emt 0:00:02]} Nc6 {[%emt 0:00:02]} 3. Nf3 {[%emt 0:00:12]} e6 {[%emt 0:00:05]} 4. g3 {[%emt 0:00:12]} Bb4+ {[%emt 0:00:09]} 5. Nbd2 {[%emt 0:00:05]} O-O {[%emt 0:00:23]} 6. Bg2 {[%emt 0:00:19]} d6 {[%emt 0:00:16]} 7. O-O {[%emt 0:00:14]} e5 {[%emt 0:00:53]} 8. Nb3 {[%emt 0:00:38]} exd4 {[%emt 0:02:35]} 9. Nfxd4 {[%emt 0:00:06]} Ne5 {[%emt 0:01:49]} 10. Qc2 {[%emt 0:00:14]} c6 {[%emt 0:01:29]} 11. Rd1 {[%emt 0:01:00]} Qe7 {[%emt 0:00:22]} 12. h3 {[%emt 0:03:17]} Be6 {[%emt 0:01:35]} 13. Nxe6 {[%emt 0:00:13]} Qxe6 {[%emt 0:01:14]} 14. a3 {[%emt 0:01:01]} Bc5 {[%emt 0:00:17]} 15. Nxc5 {[%emt 0:00:05]} dxc5 {[%emt 0:00:03]} 16. b3 {[%emt 0:00:02]} Rfe8 {[%emt 0:01:01]} 17. Be3 {[%emt 0:00:18]} Qe7 {[%emt 0:01:01]} 18. Rd2 {[%emt 0:00:06]} Ned7 {[%emt 0:00:48]} 19. Rad1 {[%emt 0:00:07]} Nf8 {[%emt 0:00:09]} 20. Qf5 {[%emt 0:00:32]} Ne6 {[%emt 0:00:17]} 21. Bf3 {[%emt 0:01:08]} Nd4 {[%emt 0:00:38]} 22. Bxd4 {[%emt 0:00:50]} cxd4 {[%emt 0:00:01]} 23. Rxd4 {[%emt 0:00:01]} Qxa3 {[%emt 0:00:18]} 24. R1d3 {[%emt 0:01:00]} Qe7 {[%emt 0:01:47]} 25. Qa5 {[%emt 0:02:02]} g6 {[%emt 0:00:38]} 26. Kg2 {[%emt 0:00:07]} Qe5 {[%emt 0:00:23]} 27. Qd2 {[%emt 0:01:14]} a5 {[%emt 0:00:15]} 28. Re3 {[%emt 0:00:42]} Qc7 {[%emt 0:00:06]} 29. Rxe8+ {[%emt 0:00:37]} Rxe8 {[%emt 0:00:02]} 30. e3 {[%emt 0:00:06]} Kg7 {[%emt 0:00:19]} 31. Rd6 {[%emt 0:01:01]} Qe7 {[%emt 0:00:20]} 32. Rd4 {[%emt 0:00:33]} Qe5 {[%emt 0:00:14]} 33. Qd3 {[%emt 0:00:51]} Ra8 {[%emt 0:00:10]} 34. Bd1 {[%emt 0:00:27]} Re8 {[%emt 0:00:17]} 35. Bc2 {[%emt 0:00:16]} Re7 {[%emt 0:00:11]} 36. Qd2 {[%emt 0:00:12]} Qc5 {[%emt 0:00:03]} 37. Rd8 {[%emt 0:00:20]} Qe5 {[%emt 0:00:21]} 38. Rd4 {[%emt 0:00:16]} Qc5 {[%emt 0:00:02]} 39. e4 {[%emt 0:00:11]} Re8 {[%emt 0:00:14]} 40. f4 {[%emt 0:00:06]} Ra8 {[%emt 0:00:18]} 41. e5 {[%emt 0:00:08]} Ne8 {[%emt 0:00:03]} 42. Rd7 {[%emt 0:00:06]} b5 {[%emt 0:00:16]} 43. e6 {[%emt 0:00:20]} Ra7 {[%emt 0:00:33]} 44. exf7 {[%emt 0:00:23]} Nf6 {[%emt 0:00:04]} 45. f8=Q+ {[%emt 0:00:19]} Kxf8 {[%emt 0:00:03]} 46. Rd8+ {[%emt 0:00:07]} Ne8 {[%emt 0:00:13]} 47. cxb5 {[%emt 0:00:08]} cxb5 {[%emt 0:00:02]} 48. Be4 {[%emt 0:00:14]} Re7 {[%emt 0:00:06]} 49. Bf3 {[%emt 0:00:02]} a4 {[%emt 0:00:09]} 50. bxa4 {[%emt 0:00:06]} bxa4 {[%emt 0:00:01]} 51. Ra8 {[%emt 0:00:04]} a3 {[%emt 0:00:03]} 52. h4 {[%emt 0:00:27]} Re3 {[%emt 0:00:06]} 53. Qd7 {[%emt 0:00:23]} Qc2+ {[%emt 0:00:24]} 54. Kh3 {[%emt 0:00:01]} Qf2 {[%emt 0:00:29]} 55. Qd6+ {[%emt 0:00:10]} Re7 {[%emt 0:00:18]} 56. Qf6+ {[%emt 0:00:02]} Rf7 {[%emt 0:00:18]} 57. Qh8+ {[%emt 0:00:09]} Ke7 {[%emt 0:00:02]} 58. Qxe8+ {[%emt 0:00:06]} Kf6 {[%emt 0:00:01]} 59. Qe5# {[%emt 0:00:02]} 1-0

[Event "European Women Rapid-ch 2023"]
[Site "Monaco"]
[Date "2024.01.14"]
[Round "7.18"]
[White "Radeva, Viktoria"]
[Black "Cramling, Pia"]
[Result "0-1"]
[ECO "B42"]
[WhiteElo "2325"]
[BlackElo "2437"]
[Annotator "RC"]
[PlyCount "70"]
[EventDate "2023.12.19"]
[EventType "swiss"]
[EventCountry "MNC"]
[SourceTitle "playchess.com"]
[Source "ChessBase"]
[SourceQuality "1"]
[TimeControl "900+10"]

1. e4 {[%emt 0:00:03]} c5 {[%emt 0:00:01]} 2. Nf3 {[%emt 0:00:14]} e6 {[%emt 0:00:02]} 3. d4 {[%emt 0:00:02]} cxd4 {[%emt 0:00:01]} 4. Nxd4 {[%emt 0:00:02]} a6 {[%emt 0:00:01]} 5. Bd3 {[%emt 0:00:26]} g6 {[%emt 0:00:02]} 6. c4 {[%emt 0:00:51]} Bg7 {[%emt 0:00:03]} 7. Nb3 {[%emt 0:00:30]} Nc6 {[%emt 0:00:57]} 8. O-O {[%emt 0:00:15]} Nge7 {[%emt 0:00:06]} 9. Nc3 {[%emt 0:00:14]} O-O {[%emt 0:00:03]} 10. Bg5 {[%emt 0:01:29]} h6 {[%emt 0:00:04]} 11. Bh4 {[%emt 0:00:52]} d6 {[%emt 0:00:34]} 12. Rc1 {[%emt 0:00:17]} g5 {[%emt 0:01:39]} 13. Bg3 {[%emt 0:00:02]} Ng6 {[%emt 0:00:02]} 14. Bb1 {[%emt 0:02:14]} Nce5 {[%emt 0:00:58]} 15. c5 {[%emt 0:00:28]} dxc5 {[%emt 0:00:12]} 16. Nxc5 {[%emt 0:00:06]} Qe7 {[%emt 0:00:23]} 17. Nd3 {[%emt 0:00:24]} Rd8 {[%emt 0:02:01]} 18. Qe2 {[%emt 0:00:28]} Bd7 {[%emt 0:00:58]} 19. Nxe5 {[%emt 0:00:13]} Nxe5 {[%emt 0:00:08]} 20. f4 {[%emt 0:01:39]} gxf4 {[%emt 0:00:08]} 21. Bxf4 {[%emt 0:00:02]} Be8 {[%emt 0:00:55]} 22. Kh1 {[%emt 0:00:30]} Ng6 {[%emt 0:01:50]} 23. e5 {[%emt 0:00:43]} Nxf4 {[%emt 0:00:41]} 24. Rxf4 {[%emt 0:00:02]} Qg5 {[%emt 0:00:33]} 25. Rcf1 {[%emt 0:01:07]} Qxe5 {[%emt 0:01:28]} 26. Qc2 {[%emt 0:00:59]} f5 {[%emt 0:00:20]} 27. Qb3 {[%emt 0:01:31]} Kh8 {[%emt 0:00:03]} 28. Qxb7 {[%emt 0:02:18]} Bb5 {[%emt 0:01:29]} 29. h3 {[%emt 0:01:35]} Rab8 {[%emt 0:00:25]} 30. Qf7 {[%emt 0:00:12]} Bxf1 {[%emt 0:00:09]} 31. Rxf1 {[%emt 0:00:02]} Rb4 {[%emt 0:00:13]} 32. b3 Rxb3 {[%emt 0:00:11]} 33. Ne4 {[%emt 0:00:35]} Rxb1 {[%emt 0:00:34]} 34. Rxb1 {[%emt 0:00:10]} Qxe4 {[%emt 0:00:02]} 35. Rb7 {[%emt 0:00:08]} Rd1+ {[%emt 0:00:05]} 0-1

[Event "European Women Rapid-ch 2023"]
[Site "Monaco"]
[Date "2024.01.14"]
[Round "7.19"]
[White "Polterauer, Chiara"]
[Black "Vega Gutierrez, Sabrina"]
[Result "0-1"]
[ECO "B33"]
[WhiteElo "2189"]
[BlackElo "2378"]
[Annotator "RC"]
[PlyCount "92"]
[EventDate "2023.12.19"]
[EventType "swiss"]
[EventCountry "MNC"]
[SourceTitle "playchess.com"]
[Source "ChessBase"]
[SourceQuality "1"]
[TimeControl "900+10"]

1. e4 {[%emt 0:00:01]} c5 {[%emt 0:00:01]} 2. Nf3 {[%emt 0:00:01]} Nc6 {[%emt 0:00:02]} 3. d4 {[%emt 0:00:02]} cxd4 {[%emt 0:00:02]} 4. Nxd4 {[%emt 0:00:01]} Nf6 {[%emt 0:00:02]} 5. Nc3 {[%emt 0:00:03]} e5 {[%emt 0:00:02]} 6. Ndb5 {[%emt 0:00:04]} d6 {[%emt 0:00:01]} 7. Bg5 {[%emt 0:00:04]} a6 {[%emt 0:00:02]} 8. Na3 {[%emt 0:00:03]} b5 {[%emt 0:00:02]} 9. Nd5 {[%emt 0:00:06]} Be7 {[%emt 0:00:02]} 10. Bxf6 {[%emt 0:00:02]} Bxf6 {[%emt 0:00:02]} 11. c4 {[%emt 0:00:17]} b4 {[%emt 0:00:03]} 12. Nc2 {[%emt 0:00:06]} O-O {[%emt 0:00:06]} 13. Be2 {[%emt 0:01:01]} a5 {[%emt 0:00:17]} 14. O-O {[%emt 0:00:21]} Bg5 {[%emt 0:00:27]} 15. Qd3 {[%emt 0:01:45]} Be6 {[%emt 0:00:03]} 16. Rfd1 {[%emt 0:00:46]} Qb8 {[%emt 0:01:02]} 17. Qg3 {[%emt 0:01:11]} Bd8 {[%emt 0:00:33]} 18. Nce3 {[%emt 0:00:21]} Nd4 {[%emt 0:00:07]} 19. Bg4 {[%emt 0:00:50]} b3 {[%emt 0:02:41]} 20. a3 {[%emt 0:00:18]} Kh8 {[%emt 0:00:56]} 21. Nf5 {[%emt 0:02:17]} Nc2 {[%emt 0:05:40]} 22. Rac1 {[%emt 0:02:49]} g6 {[%emt 0:00:01]} 23. Nfe3 {[%emt 0:00:58]} Nd4 {[%emt 0:00:07]} 24. f4 {[%emt 0:01:12]} f5 {[%emt 0:00:26]} 25. exf5 {[%emt 0:00:46]} gxf5 {[%emt 0:00:05]} 26. Bh5 {[%emt 0:00:25]} Bf7 {[%emt 0:01:48]} 27. Bf3 {[%emt 0:00:14]} Qa7 {[%emt 0:00:23]} 28. Kf1 {[%emt 0:01:24]} e4 {[%emt 0:01:23]} 29. Be2 {[%emt 0:00:21]} Nxe2 {[%emt 0:00:05]} 30. Kxe2 {[%emt 0:00:01]} Bh5+ {[%emt 0:00:02]} 31. Kf1 {[%emt 0:00:13]} Bxd1 {[%emt 0:00:08]} 32. Rxd1 {[%emt 0:00:03]} Bf6 {[%emt 0:00:36]} 33. Nxf6 {[%emt 0:01:41]} Rxf6 {[%emt 0:00:01]} 34. Nd5 {[%emt 0:00:01]} Rg6 {[%emt 0:00:04]} 35. Qxb3 {[%emt 0:00:03]} Rb8 {[%emt 0:01:45]} 36. Qc3+ {[%emt 0:00:29]} Qg7 {[%emt 0:00:02]} 37. Qxg7+ {[%emt 0:00:17]} Rxg7 {[%emt 0:01:08]} 38. Rd2 {[%emt 0:00:00]} Rgb7 {[%emt 0:00:36]} 39. b4 {[%emt 0:00:02]} axb4 {[%emt 0:00:02]} 40. axb4 {[%emt 0:00:01]} Rc8 {[%emt 0:00:16]} 41. Rc2 {[%emt 0:00:16]} Kg7 {[%emt 0:00:02]} 42. Ke2 {[%emt 0:00:09]} Kf7 {[%emt 0:00:07]} 43. Ke3 {[%emt 0:00:14]} Ke6 {[%emt 0:00:01]} 44. Kd4 {[%emt 0:00:01]} Ra8 {[%emt 0:00:14]} 45. b5 {[%emt 0:00:22]} Ra3 {[%emt 0:00:05]} 46. Ne3 {[%emt 0:00:15]} Rd3# {[%emt 0:00:16]} 0-1

[Event "European Women Rapid-ch 2023"]
[Site "Monaco"]
[Date "2024.01.14"]
[Round "7.20"]
[White "Ciarletta, Iris"]
[Black "Zhukova, Natalia"]
[Result "0-1"]
[ECO "D24"]
[WhiteElo "1911"]
[BlackElo "2301"]
[Annotator "RC"]
[PlyCount "66"]
[EventDate "2023.12.19"]
[EventType "swiss"]
[EventCountry "MNC"]
[SourceTitle "playchess.com"]
[Source "ChessBase"]
[SourceQuality "1"]
[TimeControl "900+10"]

1. d4 {[%emt 0:00:01]} Nf6 {[%emt 0:00:27]} 2. c4 {[%emt 0:00:03]} e6 {[%emt 0:00:05]} 3. Nf3 {[%emt 0:00:03]} d5 {[%emt 0:00:16]} 4. Nc3 {[%emt 0:00:03]} dxc4 {[%emt 0:00:34]} 5. e4 {[%emt 0:00:06]} b5 {[%emt 0:00:05]} 6. Nxb5 {[%emt 0:00:02]} Nxe4 {[%emt 0:00:16]} 7. Qa4 {[%emt 0:00:02]} c6 {[%emt 0:02:17]} 8. Nc3 {[%emt 0:00:01]} Nd6 {[%emt 0:00:02]} 9. Bf4 {[%emt 0:01:02]} Be7 {[%emt 0:00:38]} 10. Bxd6 {[%emt 0:01:00]} Qxd6 {[%emt 0:02:00]} 11. Bxc4 {[%emt 0:00:20]} Nd7 {[%emt 0:00:21]} 12. Qc2 {[%emt 0:00:42]} c5 {[%emt 0:01:09]} 13. dxc5 {[%emt 0:01:34]} Qxc5 {[%emt 0:00:15]} 14. Bd3 {[%emt 0:00:55]} Qh5 {[%emt 0:01:29]} 15. O-O {[%emt 0:00:59]} O-O {[%emt 0:00:02]} 16. Ne4 {[%emt 0:00:11]} Nf6 {[%emt 0:01:18]} 17. Ng3 {[%emt 0:01:32]} Qh6 {[%emt 0:00:53]} 18. Rac1 {[%emt 0:00:49]} Bd6 {[%emt 0:01:17]} 19. Ne4 {[%emt 0:01:44]} Nxe4 {[%emt 0:03:12]} 20. Bxe4 {[%emt 0:00:15]} Rb8 {[%emt 0:00:01]} 21. Rcd1 {[%emt 0:00:19]} Rb6 {[%emt 0:00:12]} 22. a3 {[%emt 0:00:27]} f5 {[%emt 0:00:34]} 23. Bd3 {[%emt 0:00:38]} Bb7 {[%emt 0:00:08]} 24. Rfe1 {[%emt 0:01:37]} Bxf3 {[%emt 0:00:06]} 25. gxf3 {[%emt 0:00:11]} Qh3 {[%emt 0:00:27]} 26. f4 {[%emt 0:00:24]} Bxf4 {[%emt 0:00:08]} 27. f3 {[%emt 0:00:02]} e5 {[%emt 0:00:48]} 28. Bf1 {[%emt 0:00:58]} Rg6+ {[%emt 0:00:14]} 29. Kh1 {[%emt 0:00:06]} Qxf3+ {[%emt 0:00:09]} 30. Bg2 {[%emt 0:00:02]} Qh5 {[%emt 0:00:05]} 31. Bd5+ {[%emt 0:00:11]} Kh8 {[%emt 0:00:01]} 32. Rg1 {[%emt 0:00:12]} e4 {[%emt 0:00:07]} 33. Rg2 {[%emt 0:00:12]} Rxg2 {[%emt 0:00:06]} 0-1

[Event "European Women Rapid-ch 2023"]
[Site "Monaco"]
[Date "2024.01.14"]
[Round "7.21"]
[White "Kulon, Klaudia"]
[Black "Exler, Veronika"]
[Result "1-0"]
[ECO "E01"]
[WhiteElo "2323"]
[BlackElo "2157"]
[Annotator "RC"]
[PlyCount "83"]
[EventDate "2023.12.19"]
[EventType "swiss"]
[EventCountry "MNC"]
[SourceTitle "playchess.com"]
[Source "ChessBase"]
[SourceQuality "1"]
[TimeControl "900+10"]

1. c4 {[%emt 0:00:01]} e6 {[%emt 0:00:01]} 2. g3 {[%emt 0:00:01]} d5 {[%emt 0:00:01]} 3. Bg2 {[%emt 0:00:02]} Nf6 {[%emt 0:00:02]} 4. Nf3 {[%emt 0:00:01]} c5 {[%emt 0:00:25]} 5. cxd5 {[%emt 0:00:03]} Nxd5 {[%emt 0:00:33]} 6. O-O {[%emt 0:00:04]} Nc6 {[%emt 0:00:01]} 7. d4 {[%emt 0:00:10]} cxd4 {[%emt 0:01:03]} 8. Nxd4 {[%emt 0:00:03]} Bd7 {[%emt 0:00:55]} 9. Nb3 {[%emt 0:00:36]} Nf6 {[%emt 0:01:05]} 10. Nc3 {[%emt 0:00:20]} Be7 {[%emt 0:00:45]} 11. Bg5 {[%emt 0:00:19]} O-O {[%emt 0:00:16]} 12. Qd2 {[%emt 0:00:06]} Be8 {[%emt 0:04:34]} 13. Qxd8 {[%emt 0:00:37]} Rxd8 {[%emt 0:00:36]} 14. Rfd1 {[%emt 0:00:02]} Bd7 {[%emt 0:00:38]} 15. Be3 {[%emt 0:00:24]} Ra8 {[%emt 0:04:01]} 16. Ne4 {[%emt 0:00:10]} Rfd8 {[%emt 0:00:23]} 17. Bc5 {[%emt 0:00:59]} Nxe4 {[%emt 0:01:02]} 18. Bxe4 {[%emt 0:00:02]} Kf8 {[%emt 0:00:06]} 19. Rac1 {[%emt 0:00:14]} Be8 {[%emt 0:00:23]} 20. Kg2 {[%emt 0:01:03]} Rxd1 {[%emt 0:01:19]} 21. Rxd1 {[%emt 0:00:02]} Bxc5 {[%emt 0:00:20]} 22. Nxc5 {[%emt 0:00:01]} b6 {[%emt 0:00:01]} 23. Nd7+ {[%emt 0:00:19]} Bxd7 {[%emt 0:00:01]} 24. Rxd7 {[%emt 0:00:02]} Rc8 {[%emt 0:00:01]} 25. Rb7 {[%emt 0:00:16]} f5 {[%emt 0:00:24]} 26. Bd3 {[%emt 0:00:58]} Ne5 {[%emt 0:00:05]} 27. Rxa7 {[%emt 0:00:14]} Nxd3 {[%emt 0:00:03]} 28. exd3 {[%emt 0:00:01]} Rc2 {[%emt 0:00:01]} 29. b3 {[%emt 0:00:01]} Rd2 {[%emt 0:00:06]} 30. Ra6 {[%emt 0:00:13]} b5 {[%emt 0:00:41]} 31. Rxe6 {[%emt 0:00:02]} Rxa2 {[%emt 0:00:04]} 32. Re5 {[%emt 0:00:01]} Rd2 {[%emt 0:00:21]} 33. Rxf5+ {[%emt 0:00:06]} Ke7 {[%emt 0:00:02]} 34. Rxb5 {[%emt 0:00:01]} Rxd3 {[%emt 0:00:01]} 35. Rb7+ {[%emt 0:00:44]} Kf6 {[%emt 0:00:01]} 36. h4 {[%emt 0:00:06]} h5 {[%emt 0:00:02]} 37. b4 {[%emt 0:00:37]} Rb3 {[%emt 0:00:12]} 38. b5 {[%emt 0:00:02]} g6 {[%emt 0:00:33]} 39. b6 {[%emt 0:00:04]} Kf5 {[%emt 0:00:09]} 40. Rb8 {[%emt 0:00:09]} Kg4 {[%emt 0:00:19]} 41. Rf8 {[%emt 0:00:06]} g5 {[%emt 0:00:13]} 42. Rg8 {[%emt 0:00:02]} 1-0